{"text_format":"3","workbook":"xlsx","n_sheets":1,"sheets":["Протокол ШЭ ВОШ по предмету"],"not_rendered":{"defined_names":1},"read":"whole","date_system":"1900"}

{"sheet":"Протокол ШЭ ВОШ по предмету","index":0,"n_rows":54,"n_cols":16,"rows_kept":54}
["№","Код ОО","Наименование ОО","Фамилия","Пол","Участник с ОВЗ (да/нет)","Класс обучения","Класс участия","Балл","Добавлено баллов по итогам апелляций","Итоговый балл","Максимальный балл","Статус","Призёр республиканского этапа прошлого года","ФИО учителя","Место работы учителя"]
[1,520201,"Муниципальное бюджетное общеобразовательное учреждение «Лицей №1» Чистопольского муниципального района Республики Татарстан","Федоров","М","нет",7,7,53,null,{"$f":"SUM(I2+J2)","v":53},100,"Победитель","нет","Капитонова Галина Анатольевна","Муниципальное бюджетное общеобразовательное учреждение \"Лицей №1\" г.Чистополя Республики Татарстан"]
[2,520227,"Муниципальное бюджетное общеобразовательное учреждение «Юлдузская средняя общеобразовательная школа» Чистопольского муниципального района РТ","Маврина","Ж","нет",7,7,51,null,51,100,"Призер","нет","Шарифуллина Альмира Инзилевна","Муниципальное бюджетное общеобразовательное учреждение \"Юлдузская средняя общеобразовательная школа\"Чистопольского муниципального района Республики Татарстан"]
[3,520205,"Муниципальное бюджетное общеобразовательное учреждение «Средняя общеобразовательная школа №5» Чистопольского муниципального района Республики Татарстан","Бармин","М","нет",7,7,51,null,51,100,"Призер","нет","Однакина Светлана Александровна","Муниципальное бюджетное общеобразовательное учреждение \"СОШ №5\" г.Чистополь Республики Татарстан"]
[4,520002,"Муниципальное бюджетное общеобразовательное учреждение «Гимназия №2» Чистопольского муниципального района Республики Татарстан","Тухватуллина","Ж","нет",7,7,44,null,44,100,"Участник","нет","Казакова Светлана Евгеньевна","Муниципальное бюджетное общеобразовательное учреждение \"Гимназия №2\" г.чистополь РТ"]
[5,520001,"Муниципальное бюджетное общеобразовательное учреждение «Гимназия №1» Чистопольского муниципального района Республики Татарстан","Колобынина","Ж","нет",7,7,39,null,39,100,"Участник","нет","Антонова Лариса Анатольевна","Муниципальное бюджетное общеобразовательное учреждение \"Гимназия №1\""]
[6,520214,"Муниципальное бюджетное общеобразовательное учреждение «Каргалинская гимназия» Чистопольского муниципального района Республики Татарстан","Загидуллин","М","нет",7,7,38,null,38,100,"Участник","нет","Салахова Лилия Гаязтиновна","Муниципальное бюджетное общеобразовательное учреждение \"Каргалинская гимназия\" Чистопольского муниципального района РТ"]
[7,520214,"Муниципальное бюджетное общеобразовательное учреждение «Каргалинская гимназия» Чистопольского муниципального района Республики Татарстан","Насыбуллина","Ж","нет",7,7,33,null,33,100,"Участник","нет","Салахова Лилия Гаязтиновна","Муниципальное бюджетное общеобразовательное учреждение \"Каргалинская гимназия\" Чистопольского муниципального района РТ"]
[8,520214,"Муниципальное бюджетное общеобразовательное учреждение «Каргалинская гимназия» Чистопольского муниципального района Республики Татарстан","Сунгатуллин","М","нет",7,7,32,null,32,100,"Участник","нет","Салахова Лилия Гаязтиновна","Муниципальное бюджетное общеобразовательное учреждение \"Каргалинская гимназия\" Чистопольского муниципального района РТ"]
[9,520225,"Муниципальное бюджетное общеобразовательное учреждение «Чистопольско-Высельская средняя общеобразовательная школа» Чистопольского муниципального района Республики Татарстан","Кудрявцев","М","нет",7,7,30,null,30,100,"Участник","нет","Мугельдинова Юлия Тимерзагитовна","Муниципальное бюджетное общеобразовательное учреждение \"Чистопольско-Высельская СОШ\" г.Чистополь Республики Татарстан"]
[10,520219,"Муниципальное бюджетное общеобразовательное учреждение «Муслюмкинская средняя общеобразовательная школа» Чистопольского муниципального района Республики Татарстан","Хасаншина","Ж","нет",7,7,13,null,13,100,"Участник","нет","Сафиуллина Ляля Накиповна","Муниципальное бюджетное общеобразовательное учреждение «Муслюмкинская средняя общеобразовательная школа» Чистопольского муниципального района Республики Татарстан"]
[11,520219,"Муниципальное бюджетное общеобразовательное учреждение «Муслюмкинская средняя общеобразовательная школа» Чистопольского муниципального района Республики Татарстан","Чернышева","Ж","нет",7,7,10,null,10,100,"Участник","нет","Сафиуллина Ляля Накиповна","Муниципальное бюджетное общеобразовательное учреждение «Муслюмкинская средняя общеобразовательная школа» Чистопольского муниципального района Республики Татарстан"]
[12,520204,"Муниципальное бюджетное общеобразовательное учреждение «Средняя общеобразовательная школа №4» Чистопольского муниципального района Республики Татарстан","Сайфуллина","Ж","нет",7,7,7,null,7,100,"Участник","нет","Фазлыева Эльмира Ильгизаровна","Муниципальное бюджетное общеобразовательное учреждение «Средняя общеобразовательная школа №4» Чистопольского муниципального района Республики Татарстан"]
[13,520204,"Муниципальное бюджетное общеобразовательное учреждение «Средняя общеобразовательная школа №4» Чистопольского муниципального района Республики Татарстан","Наумова","Ж","нет",7,7,7,null,7,100,"Участник","нет","Фазлыева Эльмира Ильгизаровна","Муниципальное бюджетное общеобразовательное учреждение «Средняя общеобразовательная школа №4» Чистопольского муниципального района Республики Татарстан"]
[14,520002,"Муниципальное бюджетное общеобразовательное учреждение «Гимназия №2» Чистопольского муниципального района Республики Татарстан","Панкова","Ж","нет",8,8,75,null,75,100,"Победитель","нет","Казакова Светлана Евгеньевна","Муниципальное бюджетное общеобразовательное учреждение \"Гимназия №2\" г.чистополь РТ"]
[15,520201,"Муниципальное бюджетное общеобразовательное учреждение «Лицей №1» Чистопольского муниципального района Республики Татарстан","Шакиров","М","нет",8,8,61,null,61,100,"Призер","нет","Капитонова Галина Анатольевна","Муниципальное бюджетное общеобразовательное учреждение \"Лицей №1\" г.Чистополя Республики Татарстан"]
[16,520201,"Муниципальное бюджетное общеобразовательное учреждение «Лицей №1» Чистопольского муниципального района Республики Татарстан","Охотников","М","нет",8,8,60,null,60,100,"Призер","нет","Капитонова Галина Анатольевна","Муниципальное бюджетное общеобразовательное учреждение \"Лицей №1\" г.Чистополя Республики Татарстан"]
[17,520101,"Муниципальное бюджетное общеобразовательное учреждение «Средняя общеобразовательная школа №1» Чистопольского муниципального района Республики Татарстан","Быкова","Ж","нет",8,8,54,null,54,100,"Призер","нет","Чебарева Ольга Валентиновна","Муниципальное бюджетное общеобразовательное учреждение \"Школа №1\" г.Чистополя Республики Татарстан"]
[18,520201,"Муниципальное бюджетное общеобразовательное учреждение «Лицей №1» Чистопольского муниципального района Республики Татарстан","Морозова","Ж","нет",8,8,53,null,53,100,"Призер","нет","Капитонова Галина Анатольевна","Муниципальное бюджетное общеобразовательное учреждение \"Лицей №1\" г.Чистополя Республики Татарстан"]
[19,520201,"Муниципальное бюджетное общеобразовательное учреждение «Лицей №1» Чистопольского муниципального района Республики Татарстан","Миргазов","М","нет",8,8,42,null,42,100,"Участник","нет","Капитонова Галина Анатольевна","Муниципальное бюджетное общеобразовательное учреждение \"Лицей №1\" г.Чистополя Республики Татарстан"]
[20,520101,"Муниципальное бюджетное общеобразовательное учреждение «Средняя общеобразовательная школа №1» Чистопольского муниципального района Республики Татарстан","Бакалдин","М","нет",8,8,35,null,35,100,"Участник","нет","Чебарева Ольга Валентиновна","Муниципальное бюджетное общеобразовательное учреждение \"Школа №1\" г.Чистополя Республики Татарстан"]
[21,520101,"Муниципальное бюджетное общеобразовательное учреждение «Средняя общеобразовательная школа №1» Чистопольского муниципального района Республики Татарстан","Вордомацкая","Ж","нет",8,8,28,null,28,100,"Участник","нет","Чебарева Ольга Валентиновна","Муниципальное бюджетное общеобразовательное учреждение \"Школа №1\" г.Чистополя Республики Татарстан"]
[22,520225,"Муниципальное бюджетное общеобразовательное учреждение «Чистопольско-Высельская средняя общеобразовательная школа» Чистопольского муниципального района Республики Татарстан","Маркова","Ж","нет",8,8,24,null,24,100,"Участник","нет","Мугельдинова Юлия Тимерзагитовна","Муниципальное бюджетное общеобразовательное учреждение \"Чистопольско-Высельская СОШ\" г.Чистополь Республики Татарстан"]
[23,520205,"Муниципальное бюджетное общеобразовательное учреждение «Средняя общеобразовательная школа №5» Чистопольского муниципального района Республики Татарстан","Пискунова","Ж","нет",8,8,21,null,21,100,"Участник","нет","Валеева Ильмира Мухарямовна","Муниципальное бюджетное общеобразовательное учреждение \"СОШ №5\" г.Чистополь Республики Татарстан"]
[24,520209,"Государственное бюджетное общеобразовательное учреждение \"Чистопольская кадетская школа-интернат имени Героя Советского Союза Кузьмина Сергея Евдокимовича\"","Шашина","Ж","нет",8,8,17,null,17,100,"Участник","нет","Бахадирова Вероника Леонидовна","Государственное бюджетное общеобразовательное учреждение \"Чистопольская кадетская школа-интернат имени Героя Советского Союза Кузьмина Сергея Евдокимовича\""]
[25,520204,"Муниципальное бюджетное общеобразовательное учреждение «Средняя общеобразовательная школа №4» Чистопольского муниципального района Республики Татарстан","Тезенина","Ж","нет",8,8,14,null,14,100,"Участник","нет","Фазлыева Эльмира Ильгизаровна","Муниципальное бюджетное общеобразовательное учреждение «Средняя общеобразовательная школа №4» Чистопольского муниципального района Республики Татарстан"]
[26,520202,"Муниципальное бюджетное общеобразовательное учреждение «Лицей № 2» Чистопольского муниципального района Республики Татарстан","Шишкина","Ж","нет",8,8,14,null,14,100,"Участник","нет","Лачугина Елена Евгеньевна","Муниципальное бюджетное общеобразовательное учреждение «Лицей № 2» Чистопольского муниципального района Республики Татарстан"]
[27,520205,"Муниципальное бюджетное общеобразовательное учреждение «Средняя общеобразовательная школа №5» Чистопольского муниципального района Республики Татарстан","Кашапова","Ж","нет",9,9,53,null,53,100,"Победитель","нет","Однакина Светлана Александровна","Муниципальное бюджетное общеобразовательное учреждение \"СОШ №5\" г.Чистополь Республики Татарстан"]
[28,520204,"Муниципальное бюджетное общеобразовательное учреждение «Средняя общеобразовательная школа №4» Чистопольского муниципального района Республики Татарстан","Тимофеева","Ж","нет",9,9,28,null,28,100,"Участник","нет","Маркина Елена Михайловна","Муниципальное бюджетное общеобразовательное учреждение «Средняя общеобразовательная школа №4» Чистопольского муниципального района Республики Татарстан"]
[29,520103,"Муниципальное бюджетное общеобразовательное учреждение «Гимназия №3» Чистопольского муниципального района Республики Татарстан","Венидиктова","Ж","нет",9,9,26,null,26,100,"Участник","нет","Бирюшева Лилия Рамилевна","Муниципальное бюджетное общеобразовательное учреждение \"Гимназия №3\" Чистопольского муниципального района Республики Татарстан"]
[30,520214,"Муниципальное бюджетное общеобразовательное учреждение «Каргалинская гимназия» Чистопольского муниципального района Республики Татарстан","Салахов","М","нет",9,9,25,null,25,100,"Участник","нет","Салахова Лилия Гаязтиновна","Муниципальное бюджетное общеобразовательное учреждение \"Каргалинская гимназия\" Чистопольского муниципального района РТ"]
[31,520209,"Государственное бюджетное общеобразовательное учреждение \"Чистопольская кадетская школа-интернат имени Героя Советского Союза Кузьмина Сергея Евдокимовича\"","Кабирова","Ж","нет",9,9,13,null,13,100,"Участник","нет","Бахадирова Вероника Леонидовна","Государственное бюджетное общеобразовательное учреждение \"Чистопольская кадетская школа-интернат имени Героя Советского Союза Кузьмина Сергея Евдокимовича\""]
[32,520206,"Муниципальное бюджетное общеобразовательное учреждение «Основная общеобразовательная школа №6» Чистопольского муниципального района Республики Татарстан","Кафаров","М","нет",9,9,3,null,3,100,"Участник","нет","Чебанова Людмила Александровна","Муниципальное бюджетное общеобразовательное учреждение «Основная общеобразовательная школа №6» Чистопольского муниципального района Республики Татарстан"]
[33,520103,"Муниципальное бюджетное общеобразовательное учреждение «Гимназия №3» Чистопольского муниципального района Республики Татарстан","Мартынов","М","нет",10,10,73,null,{"$f":"SUM(I34+J34)","v":73},100,"Победитель","да","Орлова Анна Федоровна","Муниципальное бюджетное общеобразовательное учреждение \"Гимназия №3\" Чистопольского муниципального района Республики Татарстан"]
[34,520209,"Государственное бюджетное общеобразовательное учреждение \"Чистопольская кадетская школа-интернат имени Героя Советского Союза Кузьмина Сергея Евдокимовича\"","Шилинцев","М","нет",10,10,64,null,64,100,"Призер","нет","Фахрутдинов Ринат Сайфуллаевич","Государственное бюджетное общеобразовательное учреждение \"Чистопольская кадетская школа-интернат имени Героя Советского Союза Кузьмина Сергея Евдокимовича\""]
[35,520101,"Муниципальное бюджетное общеобразовательное учреждение «Средняя общеобразовательная школа №1» Чистопольского муниципального района Республики Татарстан","Гарифуллина","Ж","нет",10,10,51,null,51,100,"Призер","нет","Чебарева Ольга Валентиновна","Муниципальное бюджетное общеобразовательное учреждение \"Школа №1\" г.Чистополя Республики Татарстан"]
[36,520205,"Муниципальное бюджетное общеобразовательное учреждение «Средняя общеобразовательная школа №5» Чистопольского муниципального района Республики Татарстан","Каримова","Ж","нет",10,10,42,null,42,100,"Участник","нет","Однакина Светлана Александровна","Муниципальное бюджетное общеобразовательное учреждение \"СОШ №5\" г.Чистополь Республики Татарстан"]
[37,520001,"Муниципальное бюджетное общеобразовательное учреждение «Гимназия №1» Чистопольского муниципального района Республики Татарстан","Атурова","Ж","нет",10,10,40,null,40,100,"Участник","нет","Антонова Лариса Анатольевна","Муниципальное бюджетное общеобразовательное учреждение \"Гимназия №1\""]
[38,520103,"Муниципальное бюджетное общеобразовательное учреждение «Гимназия №3» Чистопольского муниципального района Республики Татарстан","Пирогов","М","нет",10,10,33,null,33,100,"Участник","нет","Орлова Анна Федоровна","Муниципальное бюджетное общеобразовательное учреждение \"Гимназия №3\" Чистопольского муниципального района Республики Татарстан"]
[39,520205,"Муниципальное бюджетное общеобразовательное учреждение «Средняя общеобразовательная школа №5» Чистопольского муниципального района Республики Татарстан","Гаранина","Ж","нет",10,10,31,null,31,100,"Участник","нет","Однакина Светлана Александровна","Муниципальное бюджетное общеобразовательное учреждение \"СОШ №5\" г.Чистополь Республики Татарстан"]
[40,520201,"Муниципальное бюджетное общеобразовательное учреждение «Лицей №1» Чистопольского муниципального района Республики Татарстан","Россова","Ж","нет",10,10,30,null,30,100,"Участник","нет","Толстова Татьяна Юрьевна","Муниципальное бюджетное общеобразовательное учреждение \"Лицей №1\" г.Чистополя Республики Татарстан"]
[41,520214,"Муниципальное бюджетное общеобразовательное учреждение «Каргалинская гимназия» Чистопольского муниципального района Республики Татарстан","Валеев","М","нет",10,10,27,null,27,100,"Участник","нет","Салахова Лилия Гаязтиновна","Муниципальное бюджетное общеобразовательное учреждение \"Каргалинская гимназия\" Чистопольского муниципального района РТ"]
[42,520201,"Муниципальное бюджетное общеобразовательное учреждение «Лицей №1» Чистопольского муниципального района Республики Татарстан","Яковлева","Ж","нет",10,10,16,null,16,100,"Участник","нет","Толстова Татьяна Юрьевна","Муниципальное бюджетное общеобразовательное учреждение \"Лицей №1\" г.Чистополя Республики Татарстан"]
[43,520103,"Муниципальное бюджетное общеобразовательное учреждение «Гимназия №3» Чистопольского муниципального района Республики Татарстан","Шабаева","Ж","нет",10,10,13,null,13,100,"Участник","нет","Орлова Анна Федоровна","Муниципальное бюджетное общеобразовательное учреждение \"Гимназия №3\" Чистопольского муниципального района Республики Татарстан"]
[44,520204,"Муниципальное бюджетное общеобразовательное учреждение «Средняя общеобразовательная школа №4» Чистопольского муниципального района Республики Татарстан","Мустафин","М","нет",10,10,10,null,10,100,"Участник","нет","Маркина Елена Михайловна","Муниципальное бюджетное общеобразовательное учреждение «Средняя общеобразовательная школа №4» Чистопольского муниципального района Республики Татарстан"]
[45,520002,"Муниципальное бюджетное общеобразовательное учреждение «Гимназия №2» Чистопольского муниципального района Республики Татарстан","Шакиров","М","нет",11,11,79,null,79,100,"Победитель","нет","Петросян Саркис Лендрушович","Муниципальное бюджетное общеобразовательное учреждение \"Гимназия №2\" г.чистополь РТ"]
[46,520218,"Муниципальное бюджетное общеобразовательное учреждение «Средняя общеобразовательная школа №16» Чистопольского муниципального района Республики Татарстан","Гаврилова","Ж","нет",11,11,65,null,65,100,"Призер","нет","Бурмистрова Елена Юрьевна","Муниципальное бюджетное общеобразовательное учреждение \"Школа №16\" г.Чистополя Республики Татарстан"]
[47,520201,"Муниципальное бюджетное общеобразовательное учреждение «Лицей №1» Чистопольского муниципального района Республики Татарстан","Штанова","Ж","нет",11,11,55,null,55,100,"Призер","нет","Толстова Татьяна Юрьевна","Муниципальное бюджетное общеобразовательное учреждение \"Лицей №1\" г.Чистополя Республики Татарстан"]
[48,520218,"Муниципальное бюджетное общеобразовательное учреждение «Средняя общеобразовательная школа №16» Чистопольского муниципального района Республики Татарстан","Комарова","Ж","нет",11,11,52,null,52,100,"Призер","нет","Бурмистрова Елена Юрьевна","Муниципальное бюджетное общеобразовательное учреждение \"Школа №16\" г.Чистополя Республики Татарстан"]
[49,520204,"Муниципальное бюджетное общеобразовательное учреждение «Средняя общеобразовательная школа №4» Чистопольского муниципального района Республики Татарстан","Горланов","М","нет",11,11,51,null,51,100,"Призер","нет","Маркина Елена Михайловна","Муниципальное бюджетное общеобразовательное учреждение «Средняя общеобразовательная школа №4» Чистопольского муниципального района Республики Татарстан"]
[50,520204,"Муниципальное бюджетное общеобразовательное учреждение «Средняя общеобразовательная школа №4» Чистопольского муниципального района Республики Татарстан","Мусавиров","М","нет",11,11,35,null,35,100,"Участник","нет","Маркина Елена Михайловна","Муниципальное бюджетное общеобразовательное учреждение «Средняя общеобразовательная школа №4» Чистопольского муниципального района Республики Татарстан"]
[51,520218,"Муниципальное бюджетное общеобразовательное учреждение «Средняя общеобразовательная школа №16» Чистопольского муниципального района Республики Татарстан","Белов","М","нет",11,11,22,null,22,100,"Участник","нет","Бурмистрова Елена Юрьевна","Муниципальное бюджетное общеобразовательное учреждение \"Школа №16\" г.Чистополя Республики Татарстан"]
[52,520101,"Муниципальное бюджетное общеобразовательное учреждение «Средняя общеобразовательная школа №1» Чистопольского муниципального района Республики Татарстан","Остолопов","М","нет",11,11,11,null,11,100,"Участник","нет","Чебарева Ольга Валентиновна","Муниципальное бюджетное общеобразовательное учреждение \"Школа №1\" г.Чистополя Республики Татарстан"]
[53,520218,"Муниципальное бюджетное общеобразовательное учреждение «Средняя общеобразовательная школа №16» Чистопольского муниципального района Республики Татарстан","Донсков","М","нет",11,11,10,null,10,100,"Участник","нет","Бурмистрова Елена Юрьевна","Муниципальное бюджетное общеобразовательное учреждение \"Школа №16\" г.Чистополя Республики Татарстан"]